Cogmind - Beta 11 @@@ ROGUE MODE // 2022.03.20 @ 17:41:00 Player: Termy Result: Destroyed by S-10 Pest with Light Assault Rifle Performance ------------- Evolutions (0) 0 Regions Visited (2) 400 Robots Destroyed (10) 50 Value Destroyed (276) 276 Prototype IDs (0) 0 Alien Tech Used (0) 0 Bonus (0) 0 TOTAL SCORE: 726 Bonus ------- None Cogmind --------- Core Integrity 0/250 Matter 95/300 Energy 250/250 System Corruption 4% Temperature Cool (0) Movement Walking (120) Location -10/Mines Parts ------- > --- POWER (1) -------- Ion Engine > --- PROPULSION (2) --- Carbon-fiber Leg Carbon-fiber Leg > --- UTILITY (2) ------ Small Storage Unit Sensor Array > --- WEAPON (2) ------- Medium Laser Assault Rifle > --- INVENTORY (8) ---- Light Treads Light Treads Aluminum Leg Aluminum Leg EM Pulse Gun Beamcaster Signal Generator Peak State ------------ > --- POWER ------------ Ion Engine > --- PROPULSION ------- Carbon-fiber Leg Carbon-fiber Leg > --- UTILITY ---------- Small Storage Unit Sensor Array > --- WEAPON ----------- Medium Laser Grenade Launcher > --- INVENTORY -------- Light Treads Light Treads Aluminum Leg Structural Scanner EM Pulse Gun Assault Rifle Signal Generator [Rating: 12] Favorites ----------- Power Ion Engine Engine Ion Engine Propulsion Aluminum Leg Leg Aluminum Leg Wheel Wheel Utility Small Storage Unit Device Sensor Array Storage Small Storage Unit Weapon Medium Laser Energy Gun Medium Laser Ballistic Gun Assault Rifle Launcher Grenade Launcher Build | -11 -10 -10 ------- Run | Scr Mat Min Slots Evolved . | . . . Power . | . . . Propulsion . | . . . Utility . | . . . Weapon . | . . . Parts Attached 16 | 6 4 6 Power 2 | 1 1 . Engine 2 | 1 1 . Core . | . . . Reactor . | . . . Propulsion 6 | 2 2 2 Treads . | . . . Leg 4 | . 2 2 Wheel 2 | 2 . . Hover . | . . . Flight . | . . . Utility 4 | 1 . 3 Device 2 | . . 2 Storage 2 | 1 . 1 Processor . | . . . Hackware . | . . . Protection . | . . . Artifact . | . . . Weapon 4 | 2 1 1 Energy Gun 1 | 1 . . Energy Cannon . | . . . Ballistic Gun 2 | 1 . 1 Ballistic Cannon . | . . . Launcher 1 | . 1 . Special Weapon . | . . . Impact Weapon . | . . . Slashing Weapon . | . . . Piercing Weapon . | . . . Special Melee Weapon . | . . . Unidentified Prototypes . | . . . Parts Lost 4 | . 3 1 Power 1 | . 1 . Propulsion 2 | . 2 . Utility . | . . . Weapon 1 | . . 1 Highest Loss Streak 3 | . 3 1 To Critical Strikes . | . . . Average Slot Usage (%) 89 | . 78 94 Engine 14 | . 14 14 Leg 20 | . 3 28 Wheel 5 | . 17 . Device 8 | . . 11 Storage 12 | . 14 12 Energy Gun 14 | . 14 14 Ballistic Gun 3 | . 9 . Launcher 10 | . 4 12 Naked Turns . | . . . Heaviest Build 16 | 14 15 16 Greatest Support 30 | 20 20 30 Greatest Overweight (x) 4 | 2 4 . Average Overweight (x) . | . . . Largest Inventory Capacity 8 | 8 8 8 Average Capacity 7 | 6 8 7 Most Carried 8 | 6 7 8 Average Carried 5 | 2 6 5 Final Capacity 8 | 8 8 8 Final Carried 7 | 6 4 7 Class Distribution -------------------- 100% | Mutant Dominant Class ---------------- Mutant | -10/Materials Mutant | -10/Mines Resources | -11 -10 -10 ----------- Run | Scr Mat Min Matter Collected 259 | 155 . 104 Remotely . | . . . Salvage Created 147 | . 33 114 Parts 17 | . 2 15 Haulers Intercepted . | . . . Recyclers Shooed 1 | . 1 . Parts Field Recycled . | . . . Retrieved Matter . | . . . Parts Self-Destructed . | . . . Prevented . | . . . Kills | -11 -10 -10 ------- Run | Scr Mat Min Combat Hostiles Destroyed 8 | . 1 7 Guns 1 | . 1 . AOE 7 | . . 7 Classes Destroyed 4 | . 2 2 Tunneler 1 | . . 1 Watcher 1 | . 1 . Swarmer 3 | . . 3 Grunt 5 | . 1 4 Best Kill Streak 5 | . 2 5 Combat Bots Only 4 | . 1 4 Max Kills in Single Turn 3 | . 1 3 Gunslinging . | . . . Exploded 2 | . . 2 Melee . | . . . Uniques/NPCs Destroyed . | . . . Combat | -11 -10 -10 -------- Run | Scr Mat Min Damage Taken 758 | . 337 421 Core 251 | . 46 205 Absorbed by Shields . | . . . Core Remaining (%) 100 | 100 . . Volleys Fired 21 | . 15 6 Largest 2 | . 2 1 Hottest 70 | . 70 30 Shots Fired 28 | . 22 6 Gun 18 | . 17 1 Cannon . | . . . Launcher 10 | . 5 5 Special . | . . . Kinetic 8 | . 7 1 Thermal 10 | . 10 . Explosive 10 | . 5 5 Electromagnetic . | . . . Robot Hit Streak 9 | . 9 2 Robot Miss Streak 2 | . 1 2 Penetration Max . | . . . Secondary Targets . | . . . Shots Hit Robots 13 | . 11 2 Core Hits 19 | . 6 13 Critical Kills . | . . . Critical Parts Destroyed 1 | . 1 . Critical Strikes 2 | . 2 . Burn 1 | . 1 . Destroy 1 | . 1 . Melee Attacks . | . . . Impact . | . . . Slashing . | . . . Piercing . | . . . Sneak Attacks . | . . . Combat Hostiles . | . . . Follow-up Attacks . | . . . Damage Inflicted 745 | . 389 356 Guns 127 | . 127 . Cannons . | . . . Explosions 618 | . 262 356 Melee . | . . . Ramming . | . . . Kinetic 50 | . 50 . Thermal 77 | . 77 . Explosive 618 | . 262 356 Electromagnetic . | . . . Impact . | . . . Slashing . | . . . Piercing . | . . . Highest Corruption 4 | . . 4 Average Corruption 4 | . . 4 Corruption Purged . | . . . Corruption Blocked . | . . . Effects 1 | . . 1 Message Errors 1 | . . 1 Overload Shots . | . . . Overflow Damage . | . . . Projectiles . | . . . Explosions . | . . . Melee . | . . . Knockbacks . | . . . Impact . | . . . Kinetic . | . . . Secondary . | . . . Self-Inflicted Damage 22 | . . 22 Shots 1 | . . 1 Rammed . | . . . Targets Rammed . | . . . Kicked . | . . . Crushed . | . . . Highest Temperature 79 | . 79 5 Average Temperature 33 | . 35 3 Received Heat Transfer 156 | . 120 36 Siege Activations . | . . . Robots Corrupted . | . . . Combat Hostiles . | . . . Parts Fried . | . . . Impact Corruptions . | . . . Robots Melted . | . . . Combat Hostiles . | . . . Parts Melted . | . . . Heat Transferred 296 | . 296 . Parts Sabotaged . | . . . Parts Stolen . | . . . Parts Stripped . | . . . Power Chain Reactions . | . . . Missiles Intercepted . | . . . Alert | -11 -10 -10 ------- Run | Scr Mat Min Peak Influence 331 | . 169 331 Initial 65 | . . 65 Average 143 | . 37 211 Maximum Alert Level 1 | . . 1 Low Security (%) 88 | 100 100 81 Level 1 11 | . . 18 Level 2 . | . . . Level 3 . | . . . Level 4 . | . . . Level 5 . | . . . High Security . | . . . Max Security . | . . . Squads Dispatched 2 | . 1 1 Investigation . | . . . Extermination . | . . . Reinforcement 1 | . 1 . Assault 1 | . . 1 Garrison . | . . . Intercept . | . . . Searches Triggered . | . . . Construction Impeded . | . . . Haulers Reinforced . | . . . Active Scanning Responses . | . . . Cargo Convoy Interrupts . | . . . Stealth | -11 -10 -10 --------- Run | Scr Mat Min Distress Signals 1 | . 1 . Communications Jammed . | . . . Distress Signals . | . . . Times Spotted 17 | . 7 10 Peak Tracking Total 4 | . 4 4 Tactical Retreats . | . . . Traps | -11 -10 -10 ------- Run | Scr Mat Min Traps Triggered . | . . . Indirectly . | . . . Trap Hack Attempts . | . . . Triggered . | . . . Disarmed . | . . . Reprogrammed . | . . . Reused . | . . . Traps Extracted . | . . . Installed . | . . . Triggered . | . . . Machines | -11 -10 -10 ---------- Run | Scr Mat Min Machines Disabled 4 | . 3 1 Max in Single Turn 3 | . 3 1 Machines Sabotaged . | . . . Garrisons Compromised . | . . . Overloaded Fab Kills . | . . . Hacking | -11 -10 -10 --------- Run | Scr Mat Min Machines Accessed 2 | . 2 . Terminals 2 | . 2 . Fabricators . | . . . Repair Stations . | . . . Recycling Units . | . . . Scanalyzers . | . . . Garrison Access . | . . . Total Hacks 10 | . 10 . Successful 6 | . 6 . Failed 4 | . 4 . Catastrophic . | . . . Database Lockouts . | . . . Manual 7 | . 7 . Terminals 10 | . 10 . Fabricators . | . . . Repair Stations . | . . . Recycling Units . | . . . Scanalyzers . | . . . Garrison Access . | . . . Terminal Hacks 3 | . 3 . Maintenance Status 1 | . 1 . Hauler Manifests 1 | . 1 . Zone Layout 1 | . 1 . Fabricator Hacks . | . . . Repair Station Hacks . | . . . Recycling Unit Hacks . | . . . Scanalyzer . | . . . Garrison Access Hacks . | . . . Unauthorized Hacks 3 | . 3 . Terminals 3 | . 3 . Track 2 | . 2 . Operators 1 | . 1 . Fabricators . | . . . Repair Stations . | . . . Recycling Units . | . . . Scanalyzers . | . . . Garrison Access . | . . . Data Cores Recovered . | . . . Used . | . . . Hacking Detections 2 | . 2 . Full Trace Events . | . . . Feedback Events . | . . . Feedback Blocked . | . . . Robot Schematics Acquired . | . . . Robots Built . | . . . Authchips . | . . . Time . | . . . Total Robot Build Rating . | . . . Part Schematics Acquired . | . . . Parts Built . | . . . Authchips . | . . . Time . | . . . Total Part Build Rating . | . . . Parts Repaired . | . . . Time . | . . . Parts Recycled . | . . . Recycled Matter . | . . . Retrieved Matter . | . . . Retrieved Components . | . . . Parts Scanalyzed . | . . . Part Schematics Acquired . | . . . Parts Damaged . | . . . Bothacking | -11 -10 -10 ------------ Run | Scr Mat Min Used RIF Installer . | . . . Robots Hacked . | . . . Non-combat . | . . . Combat . | . . . Robot Hacks Applied . | . . . Relay Couplers Released . | . . . Fabnet Peak Effective % . | . . . Robots Rewired . | . . . Allies Hacked . | . . . Hacks Repelled . | . . . Allies | -11 -10 -10 -------- Run | Scr Mat Min Total Allies 1 | . . 1 Largest Group 1 | . . 1 Highest-Rated Group 31 | . . 31 Highest-Rated Ally 31 | . . 31 Total Orders . | . . . Ally Attacks 3 | . . 3 Total Damage 61 | . . 61 Kills 1 | . . 1 Allies Corrupted . | . . . Allies Melted . | . . . Intel | -11 -10 -10 ------- Run | Scr Mat Min Robot Analysis Total . | . . . Derelict Logs Recovered 1 | . . 1 Drone Launches . | . . . Drone Recoveries . | . . . Exploration | -11 -10 -10 ------------- Run | Scr Mat Min Turns Passed 561 | 56 151 354 Spaces Moved 415 | 46 107 262 Core 18 | 10 8 . Treads . | . . . Legs 274 | . 12 262 Wheels 123 | 36 87 . Hover . | . . . Flight . | . . . Fastest Speed 50 | 50 80 120 Average Speed 110 | 87 97 120 Slowest Speed 250 | 150 250 120 Overloaded Moves . | . . . Propulsion Burnouts . | . . . Robots Hopped . | . . . Cave-ins Triggered 1 | . . 1 Exploration Rate (%) 32 | 3 31 62 Regions Visited 2 Branch Regions 1 Pre-discovered Areas . | . . . Known Exits Taken . | . . . Unknown Exits Taken 2 | 1 1 . Scrap Searched 1 | . . 1 Spaces Dug . | . . . Terrain Destroyed 60 | . 23 37 Melee . | . . . Projectile . | . . . AOE 60 | . 23 37 Terrain Rammed . | . . . Walls Destroyed . | . . . Machines Disabled . | . . . Actions | -11 -10 -10 --------- Run | Scr Mat Min Total 483 | 58 131 294 Wait 18 | 1 5 12 Move 413 | 45 106 262 Hop . | . . . Pick Up 12 | 6 1 5 Fast Attach 8 | 6 . 2 Attach 4 | . 3 1 Detach . | . . . Swap 4 | . 1 3 Drop 3 | . . 3 Fire 21 | . 15 6 Melee . | . . . Ram . | . . . Kick . | . . . Crush . | . . . Escape Stasis . | . . . Rewire . | . . . Trap . | . . . Miscellaneous . | . . . Route ------- -11/Scrapyard -10/Materials (discovered 2 exits: [*Min x2]) -10/Mines (discovered 2 exits: *Mat x2) History --------- Turn | Location | Event 14 | -11/Scrapyard | Discovered new exit (range 16) 57 | -11/Scrapyard | Entered Materials 86 | -10/Materials | Discovered new exit (range 18) 108 | -10/Materials | Discovered new exit (range 15) 185 | -10/Materials | Lost 3 parts (1p2n) 208 | -10/Materials | Entered Mines 216 | -10/Mines | Discovered new exit (range 8) 332 | -10/Mines | Build established: Mutant 352 | -10/Mines | Met a Derelict testing a Signal Generator 360 | -10/Mines | Found Signal Generator 467 | -10/Mines | Identified exit to Materials 522 | -10/Mines | Crushed by falling debris 522 | -10/Mines | Core integrity fell below 50% 522 | -10/Mines | Core integrity fell below 20% 562 | -10/Mines | Destroyed by S-10 Pest with Light Assault Rifle Last Messages --------------- 00522_ Crushed by falling debris. 00522_ Grenade Launcher destroyed. 00522_ System corrupted by crushing effect (+4). 00522_ Seismic Detector crushed. 00524_ Acquired 51 matter. 00524_ U-05 Engineer lays Concrete. 00525_ K-01 Serf collects debris. 00526_ U-05 Engineer lays Concrete. 00528_ The unstable cave ceiling collapses. 00528_ K-01 Serf collects debris. 00528_ U-05 Engineer lays Concrete. 00529_ U-05 Engineer builds a Wall. 00532_ K-01 Serf collects debris. 00533_ U-05 Engineer builds a Wall. 00535_ K-01 Serf collects debris. 00536_ UTF/P:Z8PRX/8AB 00542_ K-01 Serf collects debris. 00542_ U-05 Engineer builds a Wall. Map ----- +----------------------------------------------------+ | | | | | | | | | | | | | ???????????????????????????????????????????? | | ???????????????????????????????????????????? | | ???????????????????????????????????????????? | | ????????????????????? ?????????????????????? | | ????????????????????? ???????####??????????? | | ????????????????????? ?????### ####??????? | | ????????????????????? ?????# #??????? | | ????????????????????" "????# """ #??????? | | ???????????????????? ????# " =#??????? | | ???????????????????"" "????# [ = *%#??????? | | ???????????????????"" "?????# #??????? | | ????????????????????" "?????# #??????? | | ???????????????????? ??????# #??????? | | ???????????????????? ??????#### #??????? | | ????????????????????# #????????## ##??????? | | ??????#####?????????# #?????????# #???????? | | ?????## ##????????# #?####???## #???????? | | ?????# #???###### ### ##?## ###?????? | | ?????# #???# k sss ### ##????? | | ?????# #???# r @ #????? | | ??????# #??### ####### ##???? | | ?????## ##?# #?????# < ##??? | | ?????# #?# #?????# #??? | | ?????# = #?# ####?????# #??? | | ?????## * ### ##??????## ##??? | | ###### ! ## ###?????# ##???? | | *[# #?????# #????? | | ! #?????# #????? | | ## % %= #?????## #????? | | ?# %[= ##??????######## ##????? | | ## # #??????????????#### ##?????? | | ####?????????????????# #??????? | | ########????????????????????# #??????? | | ##???????????????????????????# #??????? | | # ###????????????????????????????# #??????? | | ####?????????????????????????###### #??????? | | #??####??????????????????????# #??????? | | #### ##?????????????????????# ######??????? | | ## #?????????####????????# #???????????? | | ######???## ###???#### #???????????? | | ## ##?## ##??# #???????????? | | ### #??# ####???????????? | | #### ######?????????? | | ##### #?????????? | +----------------------------------------------------+ Best States ------------- Heat Dissipation 25 Energy Generation 10 Energy Capacity 250 Matter Stores 195 Matter Capacity 300 Sight Range 16 Robot Scan Range 14 Terrain Scan Density 10 Evasion (%) 55 Item Schematics ----------------- None Robot Schematics ------------------ None Fabricated ------------ Nothing Alien Tech Used ----------------- None Achievements -------------- None Challenges ------------ None Game ------ Seed ContainmentLinearAirjet Manual? 0 Play Time 00:10:23 Cumulative 8.0 hours Start 2022.03.20 @ 17:30:55 End 2022.03.20 @ 17:41:00 Sessions 1 Manual Loads 0 Difficulty Rogue Special Mode None Game No. 12 Rogue 12 Adventurer 0 Explorer 0 Win Type - Total 0 Types 0/0/0/0/0/0/0/0/0 Lore% 21 Gallery% 18 Achievement% 21 Wizard Run 0 Options --------- ASCII 0 Keyboard 0 Movement Numpad Keybinds 0 Fullscreen 2 Font 18/X11Bold Map View 76x50 Tactical HUD 1 Map Filters NONE Filters NONE Steam 1 RUN: 44c07afc-f6e9-40eb-a580-45f0b4bd46a2